Cogmind - Beta 13 @@@ ROGUE MODE // 2024.03.21 @ 20:21:01 Player: f_ Result: Destroyed by H-66 Slayer with Gauss Rifle Performance ------------- Evolutions (1) 500 Regions Visited (5) 1000 Robots Destroyed (10) 50 Value Destroyed (191) 191 Prototype IDs (1) 20 Alien Tech Used (0) 0 Bonus (0) 0 TOTAL SCORE: 1761 Bonus ------- None Cogmind --------- Core Integrity 0/400 Matter 300/300 Energy 99/100 System Corruption 2% Temperature Cool (0) Movement Core (50) Location -6/Proximity Caves Parts ------- > --- POWER (1) -------- (None) > --- PROPULSION (4) --- (None) > --- UTILITY (2) ------ (None) > --- WEAPON (2) ------- (None) > --- INVENTORY (5) ---- Small Storage Unit Bomb Factory No. 2 Peak State ------------ > --- POWER ------------ Light Ion Engine > --- PROPULSION ------- Flight Unit Flight Unit > --- UTILITY ---------- Bomb Factory No. 2 > --- WEAPON ----------- Small Laser Light Assault Rifle > --- INVENTORY -------- Small Storage Unit Light Assault Rifle [Rating: 17] Favorites ----------- Power Light Ion Engine Engine Light Ion Engine Propulsion Flight Unit Wheel Compact Wheel Flight Unit Flight Unit Utility Small Storage Unit Device Bomb Factory No. 2 Storage Small Storage Unit Weapon Light Assault Rifle Energy Gun Small Laser Ballistic Gun Light Assault Rifle Build | -11 -10 -9 -9 -7 -6 ------- Run | Yrd Mat Mat Min Zio Pro Slots Evolved 2 | . . 2 . . . Power . | . . . . . . Propulsion 2 | . . 2 . . . Utility . | . . . . . . Weapon . | . . . . . . Parts Attached 11 | 5 2 . . 1 3 Power 1 | 1 . . . . . Engine 1 | 1 . . . . . Core . | . . . . . . Reactor . | . . . . . . Propulsion 5 | 2 2 . . . 1 Treads . | . . . . . . Leg . | . . . . . . Wheel 2 | 2 . . . . . Hover . | . . . . . . Flight 3 | . 2 . . . 1 Utility 2 | . . . . 1 1 Device 1 | . . . . 1 . Storage 1 | . . . . . 1 Processor . | . . . . . . Hackware . | . . . . . . Protection . | . . . . . . Artifact . | . . . . . . Weapon 3 | 2 . . . . 1 Energy Gun 1 | 1 . . . . . Energy Cannon . | . . . . . . Ballistic Gun 2 | 1 . . . . 1 Ballistic Cannon . | . . . . . . Launcher . | . . . . . . Special Weapon . | . . . . . . Impact Weapon . | . . . . . . Slashing Weapon . | . . . . . . Piercing Weapon . | . . . . . . Special Melee Weapon . | . . . . . . Unidentified Prototypes 1 | . . . . 1 . Parts Lost 7 | . . . . . 7 Power 1 | . . . . . 1 Propulsion 3 | . . . . . 3 Utility . | . . . . . . Weapon 3 | . . . . . 3 Highest Loss Streak 4 | . . . . . 4 To Critical Strikes . | . . . . . . Average Slot Usage (%) 49 | . 71 55 55 57 36 Engine 10 | . 14 11 11 11 8 Wheel 3 | . 19 . . . . Flight 15 | . 8 22 22 22 13 Energy Gun 8 | . 14 11 11 11 4 Ballistic Gun 11 | . 14 11 11 11 10 Naked Turns 9 | . . . . . 9 Heaviest Build 9 | 5 5 5 5 5 9 Greatest Support 32 | 32 32 8 8 8 8 Greatest Overweight (x) 2 | . . . . . 2 Average Overweight (x) . | . . . . . . Largest Inventory Capacity 8 | 5 5 5 5 5 8 Average Capacity 5 | 5 5 5 5 5 5 Most Carried 5 | 5 5 2 2 4 4 Average Carried 2 | 2 2 2 2 3 3 Final Capacity 5 | 5 5 5 5 5 5 Final Carried 4 | 3 2 2 2 4 3 Class Distribution -------------------- 100% | Mutant Dominant Class ---------------- Mutant | -10/Materials Mutant | -9/Materials Mutant | -9/Mines Mutant | -7/Zion Mutant | -6/Proximity Caves Resources | -11 -10 -9 -9 -7 -6 ----------- Run | Yrd Mat Mat Min Zio Pro Matter Collected 346 | 250 35 14 . . 47 Remotely . | . . . . . . Salvage Created 228 | . 111 67 . . 50 Parts 21 | . 11 6 . . 4 Haulers Intercepted . | . . . . . . Recyclers Shooed . | . . . . . . Parts Field Recycled . | . . . . . . Retrieved Matter . | . . . . . . Parts Self-Destructed 6 | . . . . . 6 Prevented 5 | . . . . . 5 Kills | -11 -10 -9 -9 -7 -6 ------- Run | Yrd Mat Mat Min Zio Pro Combat Hostiles Destroyed 7 | . 5 . . . 2 Guns 7 | . 5 . . . 2 Classes Destroyed 4 | . 2 2 . . . Tunneler 1 | . . 1 . . . Operator 2 | . . 2 . . . Swarmer 5 | . 3 . . . 2 Grunt 2 | . 2 . . . . Best Kill Streak 4 | . 4 3 . . 2 Combat Bots Only 4 | . 4 . . . 2 Max Kills in Single Turn 1 | . 1 1 . . 1 Gunslinging . | . . . . . . Exploded . | . . . . . . Melee . | . . . . . . Uniques/NPCs Destroyed . | . . . . . . Combat | -11 -10 -9 -9 -7 -6 -------- Run | Yrd Mat Mat Min Zio Pro Hostile Shots Fired 103 | . 19 13 . . 71 Missed 44 | . 6 7 . . 31 Damage Taken 845 | . 115 75 . . 655 Core 440 | . 38 52 . . 350 Absorbed by Shields . | . . . . . . Core Remaining (%) 92 | 100 84 . . . . Volleys Fired 42 | . 17 12 . . 13 Largest 2 | . 2 2 . . 2 Hottest 60 | . 60 60 . . 60 Shots Fired 71 | . 33 22 . . 16 Gun 71 | . 33 22 . . 16 Cannon . | . . . . . . Launcher . | . . . . . . Special . | . . . . . . Kinetic 42 | . 17 12 . . 13 Thermal 29 | . 16 10 . . 3 Explosive . | . . . . . . Electromagnetic . | . . . . . . Robot Hit Streak 10 | . 10 3 . . 3 Robot Miss Streak 8 | . 2 4 . . 8 Penetration Max . | . . . . . . Secondary Targets . | . . . . . . Shots Hit Robots 34 | . 20 8 . . 6 Core Hits 16 | . 7 5 . . 4 Critical Kills . | . . . . . . Critical Parts Destroyed 1 | . 1 . . . . Critical Strikes 1 | . 1 . . . . Destroy 1 | . 1 . . . . Melee Attacks . | . . . . . . Impact . | . . . . . . Slashing . | . . . . . . Piercing . | . . . . . . Sneak Attacks . | . . . . . . Combat Hostiles . | . . . . . . Follow-up Attacks . | . . . . . . Damage Inflicted 315 | . 184 80 . . 51 Guns 315 | . 184 80 . . 51 Cannons . | . . . . . . Explosions . | . . . . . . Melee . | . . . . . . Ramming . | . . . . . . Kinetic 166 | . 78 37 . . 51 Thermal 149 | . 106 43 . . . Explosive . | . . . . . . Electromagnetic . | . . . . . . Impact . | . . . . . . Slashing . | . . . . . . Piercing . | . . . . . . Highest Corruption 2 | . . . . . 2 Average Corruption 1 | . . . . . 1 Corruption Purged . | . . . . . . Corruption Blocked . | . . . . . . Effects 1 | . . . . . 1 Matter Fused 1 | . . . . . 1 Overload Shots . | . . . . . . Overflow Damage . | . . . . . . Projectiles . | . . . . . . Explosions . | . . . . . . Melee . | . . . . . . Knockbacks . | . . . . . . Impact . | . . . . . . Kinetic . | . . . . . . Secondary . | . . . . . . Self-Inflicted Damage . | . . . . . . Shots . | . . . . . . Rammed . | . . . . . . Targets Rammed . | . . . . . . Kicked . | . . . . . . Crushed . | . . . . . . Highest Temperature 52 | . 52 36 . . 20 Average Temperature 18 | . 21 15 . . 14 Received Heat Transfer 165 | . 36 30 . . 99 Siege Activations . | . . . . . . Robots Corrupted . | . . . . . . Combat Hostiles . | . . . . . . Parts Fried . | . . . . . . Impact Corruptions . | . . . . . . Robots Melted . | . . . . . . Combat Hostiles . | . . . . . . Parts Melted . | . . . . . . Heat Transferred 350 | . 250 100 . . . Parts Sabotaged . | . . . . . . Parts Stolen . | . . . . . . Parts Stripped . | . . . . . . Power Chain Reactions . | . . . . . . Alert | -11 -10 -9 -9 -7 -6 ------- Run | Yrd Mat Mat Min Zio Pro Peak Influence 165 | . 165 119 46 . . Initial 69 | . . 69 46 . . Average 73 | . 88 103 46 . . Maximum Alert Level . | . . . . . . Low Security (%) 100 | 100 100 100 100 . . Level 1 . | . . . . . . Level 2 . | . . . . . . Level 3 . | . . . . . . Level 4 . | . . . . . . Level 5 . | . . . . . . High Security . | . . . . . . Max Security . | . . . . . . Squads Dispatched 3 | . 2 1 . . . Investigation 1 | . 1 . . . . Extermination . | . . . . . . Reinforcement 2 | . 1 1 . . . Assault . | . . . . . . Garrison . | . . . . . . Intercept . | . . . . . . Searches Triggered . | . . . . . . Construction Impeded . | . . . . . . Haulers Reinforced . | . . . . . . Active Scanning Responses . | . . . . . . Cargo Convoy Interrupts . | . . . . . . Stealth | -11 -10 -9 -9 -7 -6 --------- Run | Yrd Mat Mat Min Zio Pro Distress Signals 3 | . 1 1 . . 1 Communications Jammed . | . . . . . . Distress Signals . | . . . . . . Times Spotted 45 | . 10 11 2 . 22 Peak Tracking Total 8 | . 5 8 2 . 8 Tactical Retreats 5 | . 1 . . . 4 Traps | -11 -10 -9 -9 -7 -6 ------- Run | Yrd Mat Mat Min Zio Pro Traps Triggered 1 | . 1 . . . . Indirectly . | . . . . . . Trap Hack Attempts . | . . . . . . Triggered . | . . . . . . Disarmed . | . . . . . . Reprogrammed . | . . . . . . Reused . | . . . . . . Traps Extracted . | . . . . . . Installed . | . . . . . . Triggered 1 | . . . . . 1 Machines | -11 -10 -9 -9 -7 -6 ---------- Run | Yrd Mat Mat Min Zio Pro Machines Disabled . | . . . . . . Max in Single Turn . | . . . . . . Machines Repaired . | . . . . . . Machines Dismantled . | . . . . . . Machines Sabotaged . | . . . . . . Overloaded Fab Kills . | . . . . . . Hacking | -11 -10 -9 -9 -7 -6 --------- Run | Yrd Mat Mat Min Zio Pro Machines Accessed 1 | . . 1 . . . Terminals 1 | . . 1 . . . Fabricators . | . . . . . . Repair Stations . | . . . . . . Recycling Units . | . . . . . . Scanalyzers . | . . . . . . Garrison Access . | . . . . . . Total Hacks 1 | . . 1 . . . Successful 1 | . . 1 . . . Failed . | . . . . . . Catastrophic . | . . . . . . Database Lockouts . | . . . . . . Manual . | . . . . . . Terminals 1 | . . 1 . . . Fabricators . | . . . . . . Repair Stations . | . . . . . . Recycling Units . | . . . . . . Scanalyzers . | . . . . . . Garrison Access . | . . . . . . Terminal Hacks 1 | . . 1 . . . Terminal Index 1 | . . 1 . . . Fabricator Hacks . | . . . . . . Repair Station Hacks . | . . . . . . Recycling Unit Hacks . | . . . . . . Scanalyzer . | . . . . . . Garrison Access Hacks . | . . . . . . Unauthorized Hacks . | . . . . . . Terminals . | . . . . . . Fabricators . | . . . . . . Repair Stations . | . . . . . . Recycling Units . | . . . . . . Scanalyzers . | . . . . . . Garrison Access . | . . . . . . Data Cores Recovered 1 | . . 1 . . . Used . | . . . . . . Hacking Detections 1 | . . 1 . . . Full Trace Events . | . . . . . . Feedback Events . | . . . . . . Feedback Blocked . | . . . . . . Robot Schematics Acquired . | . . . . . . Robots Built . | . . . . . . Authchips . | . . . . . . Time . | . . . . . . Total Robot Build Rating . | . . . . . . Part Schematics Acquired . | . . . . . . Parts Built . | . . . . . . Authchips . | . . . . . . Time . | . . . . . . Total Part Build Rating . | . . . . . . Parts Repaired . | . . . . . . Time . | . . . . . . Parts Recycled . | . . . . . . Recycled Matter . | . . . . . . Retrieved Matter . | . . . . . . Retrieved Components . | . . . . . . Parts Scanalyzed . | . . . . . . Part Schematics Acquired . | . . . . . . Parts Damaged . | . . . . . . Bothacking | -11 -10 -9 -9 -7 -6 ------------ Run | Yrd Mat Mat Min Zio Pro Used RIF Installer . | . . . . . . Robots Hacked . | . . . . . . Non-combat . | . . . . . . Combat . | . . . . . . Robot Hacks Applied . | . . . . . . Relay Couplers Released . | . . . . . . Fabnet Peak Effective % . | . . . . . . Robots Rewired . | . . . . . . Allies Hacked . | . . . . . . Hacks Repelled . | . . . . . . Allies | -11 -10 -9 -9 -7 -6 -------- Run | Yrd Mat Mat Min Zio Pro Total Allies 2 | . . . 2 . . Largest Group 2 | . . . 2 . . Highest-Rated Group 49 | . . . 49 . . Highest-Rated Ally 31 | . . . 31 . . Total Orders . | . . . . . . Ally Attacks 1 | . . . 1 . . Total Damage 22 | . . . 22 . . Kills . | . . . . . . Allies Corrupted . | . . . . . . Allies Melted . | . . . . . . Intel | -11 -10 -9 -9 -7 -6 ------- Run | Yrd Mat Mat Min Zio Pro Robot Analysis Total . | . . . . . . Derelict Logs Recovered 2 | . . . 1 . 1 Drone Launches . | . . . . . . Drone Recoveries . | . . . . . . Exploration | -11 -10 -9 -9 -7 -6 ------------- Run | Yrd Mat Mat Min Zio Pro Turns Passed 803 | 57 148 121 56 55 366 Spaces Moved 1383 | 50 128 176 80 141 808 Core 165 | 12 . . . . 153 Treads . | . . . . . . Legs . | . . . . . . Wheels 92 | 38 54 . . . . Hover . | . . . . . . Flight 1126 | . 74 176 80 141 655 Fastest Speed 35 | 50 37 37 37 37 35 Average Speed 42 | 88 63 37 37 37 39 Slowest Speed 195 | 100 100 37 37 37 195 Overloaded Moves . | . . . . . . Propulsion Burnouts . | . . . . . . Robots Hopped . | . . . . . . Cave-ins Triggered . | . . . . . . Exploration Rate (%) 27 | 3 25 19 23 12 81 Regions Visited 5 Branch Regions 3 Pre-discovered Areas . | . . . . . . Known Exits Taken . | . . . . . . Unknown Exits Taken 5 | 1 1 1 1 1 . Scrap Searched . | . . . . . . Spaces Dug . | . . . . . . Terrain Destroyed . | . . . . . . Melee . | . . . . . . Projectile . | . . . . . . AOE . | . . . . . . Terrain Rammed . | . . . . . . Walls Destroyed . | . . . . . . Machines Disabled . | . . . . . . Actions | -11 -10 -9 -9 -7 -6 --------- Run | Yrd Mat Mat Min Zio Pro Total 1524 | 62 164 211 105 143 839 Wait 76 | . 13 24 26 . 13 Move 1378 | 49 127 175 79 140 808 Hop . | . . . . . . Pick Up 12 | 8 2 . . 1 1 Fast Attach . | . . . . . . Attach 9 | 5 . . . 1 3 Detach 2 | . . . . 1 1 Swap 2 | . 2 . . . . Drop 3 | . 3 . . . . Fire 42 | . 17 12 . . 13 Melee . | . . . . . . Ram . | . . . . . . Kick . | . . . . . . Crush . | . . . . . . Escape Stasis . | . . . . . . Rewire . | . . . . . . Trap . | . . . . . . Miscellaneous . | . . . . . . Route ------- -11/Scrapyard -10/Materials -9/Materials (discovered 2 exits: [*Min] / [*Sto]) -9/Mines (discovered 2 exits: [*Mat] / [*Zio]) -7/Zion -6/Proximity Caves History --------- Turn | Location | Event 24 | -11/Scrapyard | Discovered new exit (range 15) 58 | -11/Scrapyard | Entered Materials 187 | -10/Materials | Discovered new exit (range 7) 206 | -10/Materials | Entered another Materials area 206 | -9/Materials | Evolved 2 slots: Propulsion x2 209 | -9/Materials | Discovered new exit (range 6) 261 | -9/Materials | Discovered new exit (range 14) 317 | -9/Materials | Build established: Mutant 327 | -9/Materials | Entered Mines 367 | -9/Mines | Learned Materials garrison access intel 379 | -9/Mines | A Derelict revealed a hidden shortcut to a safe place 381 | -9/Mines | Discovered new exit (range 7) 383 | -9/Mines | Entered Zion 408 | -7/Zion | Found Prototype Device 409 | -7/Zion | Identified Bomb Factory No. 2 417 | -7/Zion | Discovered new exit (range 12) 438 | -7/Zion | Entered Proximity Caves 440 | -6/Proximity Caves | Spotter reported a threat 441 | -6/Proximity Caves | Spotter reported a threat 549 | -6/Proximity Caves | Learned Factory terminal intel 631 | -6/Proximity Caves | Lost 4 parts (2n2w) 711 | -6/Proximity Caves | Spotter reported a threat 756 | -6/Proximity Caves | Core integrity fell below 50% 804 | -6/Proximity Caves | Core integrity fell below 20% 804 | -6/Proximity Caves | Destroyed by H-66 Slayer with Gauss Rifle Last Messages --------------- 00602_ S-27 Virus destroyed. 00606_ Acquired VTOL Module. 00609_ VTOL Module fries itself beyond repair. 00609_ Acquired 21 matter. 00611_ Acquired 5 matter. 00620_ Lgt. Nuclear Core fries itself beyond repair. 00708_ Lgt. Ion Engine destroyed. 00709_ N-01 Spotter is scanning... 00711_ N-01 Spotter sends a signal. 00711_ ALERT: Unidentified potential threat approaching Complex 0b10. 00718_ System corrupted: Matter fused (-9). 00718_ Acquired 9 matter. 00729_ VTOL Module destroyed. 00778_ Penetrated by Slug. 00795_ Lgt. Assault Rifle destroyed. 00804_ Penetrated by Slug. 00804_ Slug penetrates Wall. 00804_ Penetrated by Slug. Map ----- +----------------------------------------------------+ | ?????????????????????????????????????????????????? | | ???????##########????????????????????????????????? | | ???????# #????????????????????????????????? | | ???????# """ #????????????????????????????????? | | ???????# """"" ###??????????????????????????????? | | ??????## """"" ##?????????????????????????????? | | #####?# " " #?????????????????????????????? | | ### """ """ #?????????????????????????????? | | ### """ """ ##?????####???????????????????? | | ##?# """ """ ##????# ##??????????????????? | | #### #????# ##?????????????????? | | ## #????## #?????????????????? | | #????## ##?????????????????? | | ##????# #??????????????????? | | #### #?????# #??????????????????? | | ## ##??##### #?????# #??????????????????? | | ## ##?#########????## #??????????????????? | | ## #??# #?????## #??????????????????? | | ### ##?# ### #????## ##??????????????????? | | ###?## #?# #?# ##???# ##??????????????????? | | ?????### ### #?# ???# #??????????????????? | | #??????## ## #?# ##?# ##?????????????????? | | ##??????# ## #??# #?# ## #?????????????????? | | #??????# ## #???# ### ### #?????????????????? | | #?????# ## #???# #### #?????????????????? | | #???# ## #???# @h### #?????????????????? | | #??# #???# h####?????????????????? | | ####??## ###?????????????????? | | #??#### ## #?????????????????? | | #######??# ### #?????????????????? | | ##????????## ### ##?????????????????? | | #####?????????##b ## #??????????????????? | | #??????????#### g ##?????????????????? | | ??????????## g ####??????????????? | | ??????##### #??????????? | | ?????## ???????? | | ?????# ### ???????? | | #??## ## #???? ???????? | | #?## ### ## ##??????#????????? | | #?# ##### ##?## #####?###????????????????? | | #?# #???######???####????????????????????????? | | #?# #????????????????????????????????????????? | | #?# ###??????????????????????????????????????? | | #?# ###????????????????????????????????????? | | #??## ##???????????????????????????????????? | | ????## ##??????????????????????????????????? | | ?????## ##?????????????????????????????????? | | ?????## #?????????????????????????????????? | | ??#### ### #????????????????????????????????? | | ?## ##?####????????????????????????????????? | +----------------------------------------------------+ Best States ------------- Heat Dissipation 28 Energy Generation 10 Energy Capacity 125 Matter Stores 300 Matter Capacity 300 Sight Range 16 Terrain Scan Density 10 Evasion (%) 63 Item Schematics ----------------- None Robot Schematics ------------------ None Fabricated ------------ Nothing Alien Tech Used ----------------- None Achievements -------------- None Challenges ------------ None Game ------ Seed IonSpacefoldLeg Manual? 0 Play Time 00:18:36 Cumulative 17.7 hours Start 2024.03.21 @ 19:56:56 End 2024.03.21 @ 20:21:01 Sessions 1 Manual Loads 0 Difficulty Rogue Special Mode None Game No. 16 Rogue 14 Adventurer 0 Explorer 2 Win Type - Total 0 Types 0/0/0/0/0/0/0/0/0 Lore% 7 Gallery% 15 Achievement% 13 Wizard Run 0 Options --------- Layout 1 ASCII 0 Keyboard 0 Movement Mouse Keybinds 0 Fullscreen 2 Font 48/Smallcaps Map View 50x35 Zoom Use 0% Tactical HUD 1 Map Filters NONE Filters NONE Steam 1 RUN: 297fa777-95e3-4e18-86dd-1da344007263